[Event "Gashimov Memorial-B 1st"]
[Site "Shamkir"]
[Date "2014.04.23"]
[Round "4"]
[White "Mamedov, Rauf"]
[Black "Wang, Hao"]
[Result "1-0"]
[ECO "C06"]
[WhiteElo "2660"]
[BlackElo "2734"]
[Annotator "Sagar Shah"]
[PlyCount "149"]
[EventDate "2014.03.21"]
[EventType "tourn"]
[EventRounds "9"]
[EventCountry "AZE"]
[EventCategory "17"]
[SourceTitle "CBM 160"]
[Source "ChessBase"]
[SourceDate "2014.05.15"]
[SourceVersion "1"]
[SourceVersionDate "2014.05.15"]
[SourceQuality "1"]
[TimeControl "40/7200:20/3600:900+30"]
[WhiteClock "0:59:26"]
[BlackClock "0:56:56"]

1. e4 {[%emt 0:00:04]} e6 {[%emt 0:00:03]} 2. d4 {[%emt 0:00:06]} d5 {[%emt 0:
00:05]} 3. Nd2 {[%emt 0:00:03] The Tarrasch Variation is considered to be one
of the most critical variations against French Defense. Ari Ziegler who made a
DVD on the French for Black said he just doesn't know how to break the white
pawn chain in this opening.'} Nf6 {[%emt 0:00:05]} (3... c5 {Gives Black more
chances to equalise, but less chances to win.}) 4. e5 {[%emt 0:01:00]} Nfd7 {
[%emt 0:00:04]} 5. Bd3 {[%emt 0:00:10]} c5 {[%emt 0:00:05]} 6. c3 {[%emt 0:00:
02]} Nc6 {[%emt 0:00:05]} 7. Ngf3 $5 {[%emt 0:01:19]} (7. Ne2 {Is by far the
main line. The idea is to bring the d2 knight to f3.}) 7... Qb6 {[%emt 0:00:10]
} (7... f6 {is another option, but a very famous game between Tal-Bronstein
continued with} 8. Ng5 $5 {A typical Tal bluff.} fxg5 9. Qh5+ g6 10. Bxg6+ hxg6
11. Qxh8 cxd4 {with clear advantage to Black. Bronstein did not play this. He
fell for the bluff and met Ng5 with Nde5 after which White was better.}) 8. O-O
{[%emt 0:00:14]} cxd4 {[%emt 0:00:04]} 9. cxd4 {[%emt 0:00:02]} Nxd4 {[%emt 0:
00:07]} 10. Nxd4 {[%emt 0:00:03]} Qxd4 {[%emt 0:00:08]} 11. Nf3 {[%emt 0:00:02]
White gives up a pawn in order to increase his lead in development. He has
open c-file and the black king is in the center. White has decent compensation.
The credit of popularizing this line must go to Viktor Korchnoi for his very
famous game against Udovcic in 1967.'} Qb6 {[%emt 0:00:08]} 12. Qa4 {[%emt 0:
00:53] This pins the knight, and White is ready to swing his queen over to the
kingside with Qg4.'} Qb4 {[%emt 0:00:06] Sagar Shah: 'Preventing the swing.'}
13. Qc2 {[%emt 0:00:03]} Nc5 {[%emt 0:00:04]} (13... h6 14. Bd2 Qb6 15. Rac1
Be7 16. Qa4 Qd8 17. Rc2 Kf8 18. Rfc1 Nb6 19. Qg4 Bd7 20. Ba5 Rc8 21. Rxc8 Bxc8
22. Bb4 g6 23. Qh4 g5 24. Nxg5 Ke8 25. Bb5+ Bd7 26. Nxe6 fxe6 27. Qh5+ Kf8 28.
Rc3 Rh7 29. Qg6 Rg7 30. Qxh6 Bxb4 31. Rg3 {1-0 (31) Kortschnoj,V-Udovcic,M
Leningrad 1967}) (13... Qc5 {is another option, pursuing the white queen.} 14.
Qe2 Be7 15. Be3 Qa5 16. Rfc1 $44) 14. Bd2 {[%emt 0:04:57] Gaining more time
and connecting the rooks.'} Qa4 {[%emt 0:00:19]} 15. b3 {[%emt 0:00:23]} Qd7 {
[%emt 0:00:06]} 16. Rac1 {[%emt 0:05:30]} (16. Nd4 Nxd3 17. Qxd3 b6 18. a4 Bc5
19. b4 Bxd4 20. Qxd4 Bb7 21. Ra3 Rc8 22. Rg3 Rc4 23. Qd3 Qc7 24. Re1 Re4 25.
Rxe4 dxe4 26. Qd6 Qxd6 27. exd6 e3 28. Bxe3 Rg8 29. Bd4 Kd7 30. Bxg7 a5 31. b5
Be4 32. h3 Bc2 33. Rc3 Rc8 34. Rf3 f5 35. Be5 Rc5 36. Re3 Bxa4 37. f4 Bxb5 38.
Rg3 Rc1+ 39. Kh2 Rd1 40. Rg7+ Kc6 41. Rxh7 Rxd6 42. Bxd6 Kxd6 43. h4 Be8 44. h5
Bxh5 45. Rxh5 a4 {Istratescu,A (2636)-Berg,E (2587) Achaea 2012 1-0}) (16. Be2
{Preserving the bishop has been played more often, but Mamedov wants to
further build up his lead in development and capture the c-file with his rooks.
}) 16... b6 {[%emt 0:07:48]} (16... Nxd3 17. Qxd3 b6 $1 18. Rc2 a5 19. Rfc1 Ba6
20. Qd4 Bc5 21. Qg4 O-O {Black should be better because after the following
variation} 22. Bh6 f5 23. exf6 Rxf6 24. Bg5 Rff8 {White lacks compensation.})
17. Nd4 {[%emt 0:18:09]} Ba6 {[%emt 0:08:20]} (17... Nxd3 18. Qxd3 Bc5 {
should also be fine for black.}) 18. Bxa6 {[%emt 0:00:22]} Nxa6 {[%emt 0:00:07]
} 19. Qd3 {[%emt 0:03:13]} Nc5 {[%emt 0:01:09]} 20. Qe2 {[%emt 0:00:07]} a5
$146 {[%emt 0:07:52] stopping white from playing b4 and disodging the knight.'}
(20... Be7 21. b4 Ne4 22. Nb5 O-O 23. Rc7 Qe8 24. Nd4 b5 25. Rfc1 Bd8 26. R7c6
Bb6 27. Be3 Qb8 28. f3 Qxe5 29. Rxb6 axb6 30. fxe4 Qxe4 31. Nc6 Rxa2 32. Qf3
Qxf3 33. gxf3 Kh8 34. Ne5 f6 35. Nd7 Re8 36. Nxb6 Rb2 37. Bc5 h5 38. Re1 d4 39.
f4 d3 40. Rd1 Rd8 41. Be7 Rd4 42. Bc5 Rxf4 43. Rxd3 Re4 44. Kf1 Rxh2 45. Rd8+
Kh7 46. Nd7 Kg6 47. Nf8+ Kf5 48. Rd3 Rc4 49. Kg1 Rb2 50. Rd1 {Pachow,J (2235)
-Tischbierek,R (2380) Fuerstenwalde 1981 0-1}) 21. Be3 {[%emt 0:05:07]} Be7 {
[%emt 0:09:47]} 22. Qg4 $1 {[%emt 0:04:06]} g6 {[%emt 0:08:34]} (22... O-O {
is impossible due to} 23. Bh6 $1 $14) 23. Bh6 $1 {[%emt 0:01:25]} Bf8 {[%emt 0:
05:24]} 24. Bxf8 {[%emt 0:07:28]} Kxf8 {[%emt 0:00:36] This type of
compensation is what White is looking for. For a pawn the black king is pretty
weak.} 25. Qf4 {[%emt 0:00:45]} h6 {[%emt 0:01:30]} 26. Rc3 {[%emt 0:06:00]}
Qe7 {[%emt 0:07:28]} 27. Nc6 {[%emt 0:11:10]} Qd7 {[%emt 0:18:53]} 28. Nd4 {
[%emt 0:00:08]} Qe7 {[%emt 0:08:49]} 29. Nc6 {[%emt 0:00:05]} Qg5 {[%emt 0:03:
52] Wang Hao is not satisfied with the half point and presses on for a win.'}
30. Qd4 {[%emt 0:00:07]} h5 {[%emt 0:00:04]} 31. f4 {[%emt 0:09:42]} Qf5 {
[%emt 0:02:45]} 32. Qd1 {[%emt 0:07:32]} h4 {[%emt 0:07:52]} 33. Nd4 {[%emt 0:
02:00]} Qh5 {[%emt 0:00:06]} 34. Qc2 {[%emt 0:04:11]} Kg7 $15 {[%emt 0:00:13]
Blacks play has been wonderful. He has connected his rooks and remained a pawn
up'} 35. Rcf3 {[%emt 0:09:00]} Rhf8 {[%emt 0:05:49]} 36. Rc3 {[%emt 0:06:06]}
Rfc8 {[%emt 0:04:37]} 37. a3 {[%emt 0:01:11]} Re8 {[%emt 0:00:04]} 38. Rff3 {
[%emt 0:04:19]} Re7 {[%emt 0:04:41]} 39. Qe2 {[%emt 0:00:55]} h3 $2 {[%emt 0:
01:15] On the penultimate move before the time control Black goes wrong. He
should have just kept playing his rooks and waited for the extra time, but he
decided to sharpen the play and is now left with a bad position.'} 40. f5 $5 {
[%emt 0:00:00] Mamedov too plays the most complex move in the position.'} (40.
Qe1 $3 {was the refutation of Black's idea.} hxg2 41. Rh3 Qg4 42. Rh4 {traps
the black queen.}) 40... Kg8 {[%emt 0:00:00]} (40... exf5 {Sagar Shah} 41.
Nxf5+ gxf5 42. Rg3+ $18) 41. f6 {[%emt 0:02:29]} Rd7 {[%emt 0:09:47]} 42. Rf4 {
[%emt 0:14:23]} Qxe2 {[%emt 0:08:53]} 43. Nxe2 {[%emt 0:00:07] Though the
queens have been exchanged, White still harbors the ambition of mating the
black king down the h-file.'} g5 {[%emt 0:00:06]} (43... hxg2 {Sagar Shah} 44.
Rh4 {followed by Rch3 is curtains.}) 44. Rg4 {[%emt 0:10:07]} Ne4 {[%emt 0:01:
22]} 45. Rxh3 {[%emt 0:04:15] Material balance has been established, it's a
race now. Black is going to occupy the c-file while White will try to break
through on the kingside.'} Rc7 {[%emt 0:00:22]} 46. Rf3 {[%emt 0:05:19]} Kh7 {
[%emt 0:04:06]} 47. h4 {[%emt 0:02:06]} Kg6 $6 {[%emt 0:04:49]} (47... Rc2 $132
48. Ng3 Nd2 49. Rf2 Rg8 {Black is holding on.}) 48. Ng3 {[%emt 0:01:21]} Rc1+ {
[%emt 0:03:11]} 49. Kh2 {[%emt 0:00:14]} Re1 {[%emt 0:00:42]} (49... Rh8 50.
Nxe4 dxe4 51. Rxg5+ $16) 50. Nxe4 {[%emt 0:00:42]} dxe4 {[%emt 0:01:18]} 51.
Rxg5+ {[%emt 0:01:22] Suddenly the roles have been reversed. Black is now a
pawn down and in deep trouble.'} Kh6 {[%emt 0:00:06]} 52. Rc3 {[%emt 0:07:30]}
Rd8 {[%emt 0:04:39]} 53. Rgg3 {[%emt 0:02:14]} (53. Rg7 $1) 53... b5 {[%emt 0:
09:24]} 54. b4 {[%emt 0:03:30]} a4 {[%emt 0:02:05]} 55. Rg4 {[%emt 0:01:20]} e3
{[%emt 0:01:12]} 56. Kg3 {[%emt 0:00:44]} e2 {[%emt 0:04:53]} 57. Kf2 {[%emt 0:
00:31]} Rb1 {[%emt 0:02:02]} 58. Kxe2 {[%emt 0:00:43]} Rb2+ {[%emt 0:01:16]}
59. Ke1 {[%emt 0:00:02]} Rb3 {[%emt 0:00:15]} 60. Rxb3 {[%emt 0:00:00]} axb3 {
[%emt 0:00:00]} 61. Rg3 {[%emt 0:00:13]} Rg8 {[%emt 0:03:45]} 62. Rxb3 {
[%emt 0:00:32]} Rxg2 {[%emt 0:00:05]} 63. Rc3 {[%emt 0:01:11]} Kg6 {[%emt 0:00:
29]} 64. Rc5 {[%emt 0:06:59]} Rg3 {[%emt 0:00:09]} 65. Rxb5 {[%emt 0:00:40]}
Rxa3 {[%emt 0:00:06]} 66. Kd2 {[%emt 0:00:10]} Kf5 {[%emt 0:03:58]} 67. Rc5 {
[%emt 0:01:55]} Ke4 {[%emt 0:00:22]} 68. Kc2 {[%emt 0:02:11]} Kd4 {[%emt 0:01:
20]} 69. Rc7 {[%emt 0:05:47]} Kxe5 {[%emt 0:00:06]} 70. Rxf7 {[%emt 0:00:03]}
Rh3 {[%emt 0:00:06]} 71. b5 {[%emt 0:01:33]} Rxh4 {[%emt 0:00:05]} 72. Kc3 {
[%emt 0:00:28]} Rh1 {[%emt 0:01:36]} 73. Kb4 {[%emt 0:00:25]} Kf5 {[%emt 0:02:
26]} 74. b6 {[%emt 0:00:26]} e5 {[%emt 0:00:07]} 75. Rf8 {[%emt 0:00:16]
Fighting chess by both the players, this shows that chess is quite a practical
game. Though the opening was clearly better for Black, White kept up the
pressure, and near the 40th move Black went wrong and White was able to
convert his advantage.'} 1-0